bitfinex/quotes_BTCUSD_20210402
["timestamp","ask_amount","ask_price","bid_price","bid_amount"]
[1617395019399,0.629405,58788.0,58786.0,0.00499]
[1617395019654,4.06,58787.0,58786.0,0.00499]
[1617395020056,4.487779,58787.0,58786.0,0.00499]
[1617395020455,4.81220091,58787.0,58786.0,0.00499]
[1617395020655,4.447779,58787.0,58786.0,0.00499]
[1617395020854,4.81220091,58787.0,58786.0,0.00499]
[1617395021058,4.487779,58787.0,58786.0,0.00499]
[1617395021259,4.85220091,58787.0,58786.0,0.00499]
[1617395021655,4.81220091,58787.0,58786.0,0.00499]
[1617395023055,4.447779,58787.0,58786.0,0.00499]
[1617395023258,4.81220091,58787.0,58786.0,0.00499]
[1617395023457,5.18096091,58787.0,58786.0,0.00499]
[1617395024657,6.42405648,58787.0,58786.0,0.00499]
[1617395024872,6.52405648,58787.0,58786.0,0.00499]
[1617395025072,6.87422172,58787.0,58786.0,0.00499]
[1617395025475,5.89212615,58787.0,58786.0,0.00499]
[1617395025670,5.64112615,58787.0,58786.0,0.00499]
[1617395025870,5.63112615,58787.0,58786.0,0.00499]
[1617395026468,5.77610156,58787.0,58786.0,0.00499]
[1617395030629,5.73610156,58787.0,58786.0,0.00499]
[1617395031027,5.77610156,58787.0,58786.0,0.00499]
[1617395031227,5.67610156,58787.0,58786.0,0.00499]
[1617395032028,5.77610156,58787.0,58786.0,0.00499]
[1617395033459,5.73610156,58787.0,58786.0,0.00499]
[1617395034258,5.87479702,58787.0,58786.0,0.00499]
[1617395034460,5.99462702,58787.0,58786.0,0.00499]
[1617395034862,6.03462702,58787.0,58786.0,0.00499]
[1617395035059,7.17672259,58787.0,58786.0,0.00499]
[1617395036269,9.17672259,58787.0,58786.0,0.00499]
[1617395036471,8.82655735,58787.0,58786.0,0.00499]
[1617395037271,7.70576632,58787.0,58786.0,0.00499]
[1617395037473,7.54576632,58787.0,58786.0,0.00499]
[1617395037672,7.47593632,58787.0,58786.0,0.00499]
[1617395038499,7.33096091,58787.0,58786.0,0.00499]
[1617395039498,7.47593632,58787.0,58786.0,0.00499]
[1617395039898,7.54799632,58787.0,58786.0,0.00499]
[1617395040299,7.35799632,58787.0,58786.0,0.00499]
[1617395040499,6.97021732,58787.0,58786.0,0.00499]
[1617395040928,3.07021732,58787.0,58786.0,0.00499]
[1617395041134,2.66939732,58787.0,58786.0,0.1371276]
[1617395041330,2.16,58787.0,58786.0,0.71379846]
[1617395041530,2.1473,58787.0,58786.0,3.99758]
[1617395041729,2.1473,58787.0,58786.0,4.69385046]
[1617395041730,2.0,58787.0,58786.0,4.69385046]
[1617395042128,2.0,58787.0,58786.0,1.17385046]
[1617395044168,2.0,58787.0,58786.0,2.84385046]
[1617395044566,2.0,58787.0,58786.0,1.17385046]
[1617395045168,2.0,58787.0,58786.0,0.937632]
[1617395045368,2.0,58787.0,58786.0,0.73758]
[1617395045566,2.0,58787.0,58786.0,0.47758]
[1617395045768,2.0,58787.0,58786.0,0.00499]
[1617395050214,1.995,58787.0,58786.0,0.00499]
[1617395054649,2.41,58787.0,58786.0,0.00499]
[1617395054852,2.797779,58787.0,58786.0,0.00499]
[1617395055055,4.741969,58787.0,58786.0,0.00499]
[1617395055252,5.10385091,58787.0,58786.0,0.00499]
[1617395055452,4.884369,58787.0,58786.0,0.00499]
[1617395055652,5.24625091,58787.0,58786.0,0.00499]
[1617395056052,6.57625091,58787.0,58786.0,0.00499]
[1617395056482,5.24125091,58787.0,58786.0,0.00499]
[1617395056684,4.879369,58787.0,58786.0,0.00499]
[1617395056886,5.869369,58787.0,58786.0,0.00499]
[1617395057083,4.879369,58787.0,58786.0,0.00499]
[1617395057700,4.919369,58787.0,58786.0,0.00499]
[1617395058095,5.28125091,58787.0,58786.0,0.00499]
[1617395058892,6.45125091,58787.0,58786.0,0.00499]
[1617395059728,6.55125091,58787.0,58786.0,0.00499]
[1617395060124,5.38125091,58787.0,58786.0,0.00499]
[1617395060526,3.75125091,58787.0,58786.0,0.00499]
[1617395060725,3.251969,58787.0,58786.0,0.00499]
[1617395060928,4.38385091,58787.0,58786.0,0.00499]
[1617395061126,4.071969,58787.0,58786.0,0.00499]
[1617395061731,4.42885091,58787.0,58786.0,0.00499]
[1617395061930,4.071969,58787.0,58786.0,0.00499]
[1617395062931,3.301969,58787.0,58786.0,0.00499]
[1617395063332,3.261969,58787.0,58786.0,0.00499]
[1617395063733,3.161969,58787.0,58786.0,0.00499]
[1617395063935,3.111969,58787.0,58786.0,0.00499]
[1617395064139,2.76688191,58787.0,58786.0,0.05654162]
[1617395064359,2.41,58787.0,58786.0,0.29175878]
[1617395064763,2.41,58787.0,58786.0,0.24020716]
[1617395064961,2.55492021,58787.0,58786.0,0.24020716]
[1617395065563,2.55492021,58787.0,58786.0,0.00499]
[1617395065963,3.13408874,58787.0,58786.0,0.00499]
[1617395066360,3.07908874,58787.0,58786.0,0.00499]
[1617395066988,3.22400895,58787.0,58786.0,0.00499]
[1617395067188,3.22400895,58787.0,58786.0,0.05664375]
[1617395067390,3.22400895,58787.0,58786.0,0.00499]
[1617395067589,3.61178795,58787.0,58786.0,0.00499]
[1617395068987,3.9,58786.0,58785.0,0.13603632]
[1617395069186,4.77915281,58786.0,58785.0,0.13603632]
[1617395069631,4.827779,58786.0,58785.0,0.13603632]
[1617395070038,0.927779,58786.0,58785.0,0.13603632]
[1617395070233,0.54,58786.0,58785.0,0.13603632]
[1617395070634,0.927779,58786.0,58785.0,0.13603632]
[1617395070830,1.917779,58786.0,58785.0,0.13603632]
[1617395071031,2.06269921,58786.0,58785.0,0.13603632]
[1617395071234,0.68492021,58786.0,58785.0,0.13603632]
[1617395072235,2.80900895,58787.0,58785.0,0.13603632]
[1617395073443,2.66408874,58787.0,58785.0,0.13603632]
[1617395074244,3.12369546,58786.0,58785.0,0.13603632]
[1617395074444,3.12992021,58786.0,58785.0,0.13603632]
[1617395074645,3.26861567,58786.0,58785.0,0.13603632]
[1617395074885,0.50861567,58786.0,58785.0,0.13603632]
[1617395076284,0.36992021,58786.0,58785.0,0.13603632]
[1617395077285,0.14492021,58786.0,58785.0,0.37062896]
[1617395077491,2.80900895,58787.0,58785.0,0.13603632]
[1617395079090,2.80900895,58787.0,58786.0,0.035]
[1617395079291,3.17908874,58787.0,58786.0,0.035]
[1617395082314,3.32400895,58787.0,58786.0,0.035]
[1617395083339,3.17908874,58787.0,58786.0,0.035]
[1617395083537,3.56686774,58787.0,58786.0,0.035]
[1617395084136,3.90602055,58787.0,58786.0,0.035]
[1617395084340,3.56686774,58787.0,58786.0,0.035]
[1617395084940,3.56686774,58787.0,58786.0,0.0322089]
[1617395084941,6.96686774,58787.0,58786.0,0.0322089]
[1617395085138,7.44471601,58787.0,58786.0,0.0322089]
[1617395085371,7.44666926,58787.0,58786.0,0.0322089]
[1617395085569,7.44764526,58787.0,58786.0,0.0322089]
[1617395086367,3.70849245,58787.0,58786.0,0.0322089]
[1617395086568,4.94764526,58787.0,58786.0,0.0322089]
[1617395087168,4.04764526,58787.0,58786.0,0.0322089]
[1617395087368,3.56979699,58787.0,58786.0,0.0322089]
[1617395087573,3.56479699,58787.0,58786.0,0.0322089]
[1617395088608,4.41479699,58787.0,58786.0,0.0322089]
[1617395088805,3.56479699,58787.0,58786.0,0.0322089]
[1617395089008,3.56186774,58787.0,58786.0,0.0322089]
[1617395089406,6.30186774,58787.0,58786.0,0.0272089]
[1617395089606,6.64102055,58787.0,58786.0,0.0272089]
[1617395089806,7.62311612,58787.0,58786.0,0.0272089]
[1617395090014,7.86181158,58787.0,58786.0,0.0272089]
[1617395090208,8.21197682,58787.0,58786.0,0.0272089]
[1617395090621,9.37197682,58787.0,58786.0,0.0272089]
[1617395090819,8.21197682,58787.0,58786.0,0.0272089]
[1617395091022,7.22988125,58787.0,58786.0,0.0272089]
[1617395091420,8.51197682,58787.0,58786.0,0.0272089]
[1617395092022,8.5139258,58787.0,58786.0,0.0272089]
[1617395092222,7.53183023,58787.0,58786.0,0.0272089]
[1617395092621,7.23183023,58787.0,58786.0,0.0272089]
[1617395093242,4.35313477,58787.0,58786.0,0.0272089]
[1617395094045,3.86340679,58787.0,58786.0,0.0272089]
[1617395094248,3.51324155,58787.0,58786.0,0.0272089]
[1617395094644,3.17408874,58787.0,58786.0,0.0272089]
[1617395098168,3.56186774,58787.0,58786.0,0.0272089]
[1617395098396,4.1492732,58787.0,58786.0,0.0272089]
[1617395098799,4.67095601,58787.0,58786.0,0.0272089]
[1617395099197,5.84305158,58787.0,58786.0,0.0272089]
[1617395099397,8.73307038,58787.0,58786.0,0.0272089]
[1617395099594,8.69307038,58787.0,58786.0,0.0272089]
[1617395099795,8.73307038,58787.0,58786.0,0.0272089]
[1617395099995,8.47307038,58787.0,58786.0,0.0272089]
[1617395100195,8.47112125,58787.0,58786.0,0.0272089]
[1617395100395,8.66604146,58787.0,58786.0,0.0272089]
[1617395100596,8.70604146,58787.0,58786.0,0.0272089]
[1617395101422,9.25604146,58787.0,58786.0,0.0272089]
[1617395102020,8.70604146,58787.0,58786.0,0.0272089]
[1617395102220,9.68813703,58787.0,58786.0,0.0272089]
[1617395102421,8.70604146,58787.0,58786.0,0.0272089]
[1617395102823,5.217346,58787.0,58786.0,0.0272089]
[1617395103026,8.934816,58787.0,58786.0,0.0222089]
[1617395103235,4.994816,58787.0,58786.0,0.0222089]
[1617395103430,6.344816,58787.0,58786.0,0.0222089]
[1617395103653,4.944816,58787.0,58786.0,0.0222089]
[1617395103850,4.844816,58787.0,58786.0,0.0222089]
[1617395105452,5.504816,58787.0,58786.0,0.0222089]
[1617395105652,4.844816,58787.0,58786.0,0.0222089]
[1617395106052,4.98351146,58787.0,58786.0,0.0222089]
[1617395106289,4.49465076,58787.0,58786.0,0.0222089]
[1617395106691,4.10687176,58787.0,58786.0,0.0222089]
[1617395106894,3.65816176,58787.0,58786.0,0.0222089]
[1617395108910,3.65816176,58787.0,58786.0,0.25680154]
[1617395109108,3.65816176,58787.0,58786.0,0.0222089]
[1617395109506,3.65316176,58787.0,58786.0,0.0222089]
[1617395110709,3.31900895,58787.0,58786.0,0.0222089]
[1617395110908,3.31900895,58787.0,58786.0,0.02197684]
[1617395111526,3.31400895,58787.0,58786.0,0.02197684]
[1617395112335,3.45270441,58787.0,58786.0,0.02197684]
[1617395112531,3.70178795,58787.0,58786.0,0.02197684]
[1617395112730,4.03594076,58787.0,58786.0,0.02197684]
[1617395113329,3.70178795,58787.0,58786.0,0.02197684]
[1617395113530,3.64816176,58787.0,58786.0,0.02197684]
[1617395113930,4.03594076,58787.0,58786.0,0.02197684]
[1617395116355,4.81594076,58787.0,58786.0,0.02197684]
[1617395116553,4.03594076,58787.0,58786.0,0.02197684]
[1617395117685,3.89102055,58787.0,58786.0,0.02197684]
[1617395118291,4.82102055,58787.0,58786.0,0.02197684]
[1617395118689,4.96594076,58787.0,58786.0,0.02197684]
[1617395119284,5.69594076,58787.0,58786.0,0.02197684]
[1617395119698,5.55102055,58787.0,58786.0,0.02197684]
[1617395119895,4.79102055,58787.0,58786.0,0.02197684]
[1617395120296,5.60102055,58787.0,58786.0,0.02197684]
[1617395120997,5.85616455,58787.0,58786.0,0.02197684]
[1617395121198,6.97616455,58787.0,58786.0,0.02197684]
[1617395121796,7.07616455,58787.0,58786.0,0.02197684]
[1617395121997,5.95616455,58787.0,58786.0,0.02197684]
[1617395122202,5.9952258,58787.0,58786.0,0.02197684]
[1617395122799,5.14616455,58787.0,58786.0,0.02197684]
[1617395123198,4.21616455,58787.0,58786.0,0.02197684]
[1617395123400,4.11616455,58787.0,58786.0,0.02197684]
[1617395123601,4.11909074,58787.0,58786.0,0.02197684]
[1617395124000,4.11616455,58787.0,58786.0,0.02197684]
[1617395124599,3.73131182,58787.0,58786.0,0.02197684]
[1617395124834,3.72838555,58787.0,58786.0,0.02197684]
[1617395126832,4.11616455,58787.0,58786.0,0.02197684]
[1617395127653,4.11811579,58787.0,58786.0,0.02197684]
[1617395128654,4.11616455,58787.0,58786.0,0.02197684]
[1617395129858,3.72838555,58787.0,58786.0,0.02197684]
[1617395130095,4.11616455,58787.0,58786.0,0.45832684]
[1617395130288,3.81201174,58787.0,58786.0,0.45832684]
[1617395131090,3.42423274,58787.0,58786.0,0.45832684]
[1617395131290,2.90923274,58787.0,58786.0,0.45832684]
[1617395132290,2.90923274,58787.0,58786.0,0.64296473]
[1617395132494,2.65408874,58787.0,58786.0,0.45832684]
[1617395133341,2.85408874,58787.0,58786.0,0.45832684]
[1617395133943,2.85408874,58787.0,58786.0,0.45332684]
[1617395134341,2.85408874,58787.0,58786.0,0.01697684]
[1617395137969,2.85408874,58787.0,58786.0,0.2014751]
[1617395138164,2.85408874,58787.0,58786.0,0.01697684]
[1617395138367,2.85408874,58787.0,58786.0,0.20124162]
[1617395139163,2.65408874,58787.0,58786.0,0.20124162]
[1617395139361,2.62408874,58787.0,58786.0,0.20124162]
[1617395139962,0.72408874,58787.0,58786.0,0.20124162]
[1617395140992,0.72408874,58787.0,58786.0,0.68870162]
[1617395141190,0.72408874,58787.0,58786.0,0.88875362]
[1617395141392,0.72408874,58787.0,58786.0,1.02875362]
[1617395141992,0.72408874,58787.0,58786.0,4.18875362]
[1617395142192,0.72408874,58787.0,58786.0,4.28454455]
[1617395142397,8.874e-05,58787.0,58786.0,6.26454455]
[1617395142596,0.00195385,58798.0,58789.0,0.002]
[1617395142799,0.00195441,58800.0,58793.0,0.11806351]
[1617395142993,0.00195441,58800.0,58798.0,2.42517816]
[1617395143215,0.05863217,58816.0,58798.0,2.42517816]
[1617395143216,0.0019559,58805.0,58798.0,3.46761993]
[1617395143410,0.00195647,58807.0,58798.0,4.03761993]
[1617395144409,0.00195647,58807.0,58798.0,1.84761993]
[1617395144612,0.255007,58815.0,58798.0,1.751829]
[1617395145010,0.255007,58815.0,58798.0,2.021829]
[1617395145610,0.255007,58815.0,58798.0,1.181829]
[1617395146240,0.255007,58815.0,58798.0,1.411829]
[1617395146443,0.255021,58812.0,58798.0,0.97665384]
[1617395146641,0.255021,58812.0,58798.0,0.58434384]
[1617395146844,0.13869546,58811.0,58798.0,0.27196384]
[1617395147046,0.13869546,58811.0,58798.0,0.01697684]
[1617395147240,0.14150287,58819.0,58798.0,0.01697684]
[1617395148072,0.255034,58809.0,58798.0,0.01697684]
[1617395148271,0.255034,58809.0,58794.0,0.01697684]
[1617395148474,0.1834529,58819.0,58794.0,0.01697684]
[1617395148671,0.168,58818.0,58794.0,0.01697684]
[1617395148870,0.1834529,58819.0,58796.0,0.23517816]
[1617395149071,0.1834529,58819.0,58797.0,0.01697684]
[1617395149276,0.00194959,58818.0,58797.0,0.01697684]
[1617395149676,0.25503,58809.0,58797.0,0.01697684]
[1617395150073,0.00475728,58819.0,58797.0,0.01697684]
[1617395150274,0.14150287,58819.0,58797.0,0.01697684]
[1617395150474,0.14345277,58819.0,58797.0,0.01697684]
[1617395150673,1.90254184,58799.0,58797.0,0.01697684]
[1617395151095,1.89754184,58799.0,58797.0,0.01697684]
[1617395152096,1.89754184,58799.0,58794.0,0.01697684]
[1617395152703,0.387779,58798.0,58794.0,0.01697684]
[1617395152904,0.3344,58797.0,58794.0,0.01697684]
[1617395153103,0.387779,58796.0,58794.0,0.01697684]
[1617395153303,1.85,58795.0,58794.0,0.01697684]
[1617395153506,2.237779,58795.0,58794.0,0.01697684]
[1617395153719,2.777779,58795.0,58794.0,0.01697684]
[1617395154118,0.927779,58795.0,58794.0,0.01697684]
[1617395154316,0.54,58795.0,58794.0,0.01697684]
[1617395154517,0.54,58795.0,58794.0,0.252155]
[1617395154916,0.54,58795.0,58794.0,0.01697684]
[1617395155317,0.54,58795.0,58794.0,0.252155]
[1617395155720,0.255086,58796.0,58794.0,0.252155]
[1617395156120,1.89754184,58799.0,58794.0,0.252155]
[1617395156343,1.07047189,58811.0,58794.0,0.252155]
[1617395156539,0.005,58808.0,58799.0,0.002]
[1617395156738,0.387779,58807.0,58799.0,0.002]
[1617395157141,0.0048,58805.0,58799.0,0.002]
[1617395157339,0.387779,58804.0,58796.0,0.002]
[1617395157939,0.387779,58804.0,58794.0,0.01697684]
[1617395158139,0.0044,58803.0,58794.0,0.01697684]
[1617395158336,0.387779,58802.0,58794.0,0.01697684]
[1617395158738,0.64284,58802.0,58794.0,0.01697684]
[1617395159164,0.165,58801.0,58794.0,0.01697684]
[1617395159369,0.387779,58800.0,58794.0,0.01697684]
[1617395159763,0.391779,58800.0,58794.0,0.01697684]
[1617395160967,0.255071,58799.0,58794.0,0.01697684]
[1617395161171,0.391979,58798.0,58794.0,0.01697684]
[1617395162393,0.387779,58798.0,58794.0,0.01697684]
[1617395162593,0.255071,58799.0,58794.0,0.01697684]
[1617395168853,0.25702785,58799.0,58794.0,0.01697684]
[1617395169257,0.387779,58798.0,58794.0,0.01697684]
[1617395169470,0.722579,58798.0,58794.0,0.01697684]
[1617395169670,0.19,58797.0,58794.0,0.01697684]
[1617395169873,0.387779,58796.0,58794.0,0.01697684]
[1617395170068,0.38973486,58796.0,58794.0,0.01697684]
[1617395171070,0.64482686,58796.0,58794.0,0.01697684]
[1617395172490,3.84752749,58795.0,58794.0,0.01697684]
[1617395172691,0.56530649,58795.0,58794.0,0.01697684]
[1617395173890,0.17752749,58795.0,58794.0,0.01697684]
[1617395174090,0.39530649,58795.0,58794.0,0.01697684]
[1617395174492,0.39824597,58795.0,58794.0,0.01697684]
[1617395174721,1.70824597,58795.0,58794.0,0.01697684]
[1617395175521,1.72489728,58795.0,58794.0,0.01697684]
[1617395175721,2.71489728,58795.0,58794.0,0.01697684]
[1617395175922,3.15727649,58795.0,58794.0,0.01697684]
[1617395176125,4.17937206,58795.0,58794.0,0.01697684]
[1617395176323,4.31806752,58795.0,58794.0,0.01697684]
[1617395176721,6.21806752,58795.0,58794.0,0.01697684]
[1617395176930,6.57706752,58795.0,58794.0,0.01697684]
[1617395177356,6.91729752,58795.0,58794.0,0.01697684]
[1617395177851,7.16729752,58795.0,58794.0,0.01697684]
[1617395178050,6.91729752,58795.0,58794.0,0.01697684]
[1617395178257,6.97594925,58795.0,58794.0,0.01697684]
[1617395178452,6.91729752,58795.0,58794.0,0.01697684]
[1617395178852,6.86729752,58795.0,58794.0,0.01697684]
[1617395179251,6.72860206,58795.0,58794.0,0.01697684]
[1617395179451,6.56960206,58795.0,58794.0,0.01697684]
[1617395179893,6.70829752,58795.0,58794.0,0.01697684]
[1617395180285,6.82998509,58795.0,58794.0,0.01697684]
[1617395180687,6.97685322,58795.0,58794.0,0.01697684]
[1617395180885,6.9749053,58795.0,58794.0,0.01697684]
[1617395181086,6.83620984,58795.0,58794.0,0.01697684]
[1617395181286,6.9749053,58795.0,58794.0,0.01697684]
[1617395184499,6.83620984,58795.0,58794.0,0.01697684]
[1617395184703,6.8189053,58795.0,58794.0,0.01697684]
[1617395185320,6.9789053,58795.0,58794.0,0.01697684]
[1617395185719,6.84020984,58795.0,58794.0,0.01697684]
[1617395185922,5.64811427,58795.0,58794.0,0.01697684]
[1617395186120,5.99827951,58795.0,58794.0,0.01697684]
[1617395186321,7.18337508,58795.0,58794.0,0.01697684]
[1617395186521,7.32207054,58795.0,58794.0,0.01697684]
[1617395186720,7.2719053,58795.0,58794.0,0.01697684]
[1617395187120,6.9719053,58795.0,58794.0,0.01697684]
[1617395188142,5.98980973,58795.0,58794.0,0.01697684]
[1617395188343,6.20127951,58795.0,58794.0,0.01697684]
[1617395188542,6.33997497,58795.0,58794.0,0.01697684]
[1617395188946,6.33997497,58795.0,58794.0,0.03697684]
[1617395188947,7.31707054,58795.0,58794.0,0.03697684]
[1617395189143,6.9669053,58795.0,58794.0,0.03697684]
[1617395189942,6.9219053,58795.0,58794.0,0.03697684]
[1617395190143,6.7851585,58795.0,58794.0,0.03697684]
[1617395190369,6.9219053,58795.0,58794.0,0.03697684]
[1617395190767,7.63747133,58795.0,58794.0,0.03697684]
[1617395191170,7.68747133,58795.0,58794.0,0.03697684]
[1617395193018,7.68247133,58795.0,58794.0,0.03697684]
[1617395193207,7.68442,58795.0,58794.0,0.03697684]
[1617395193405,7.54572454,58795.0,58794.0,0.03697684]
[1617395193607,7.54377587,58795.0,58794.0,0.03697684]
[1617395193806,7.68247133,58795.0,58794.0,0.03697684]
[1617395194007,7.54377587,58795.0,58794.0,0.03697684]
[1617395194206,6.5616803,58795.0,58794.0,0.03697684]
[1617395196218,6.4086803,58795.0,58794.0,0.03697684]
[1617395197218,6.60605221,58795.0,58794.0,0.03697684]
[1617395198017,6.46735675,58795.0,58794.0,0.03697684]
[1617395199246,6.46735675,58795.0,58794.0,0.03197684]
[1617395199645,6.4086803,58795.0,58794.0,0.03197684]
[1617395200045,6.46736103,58795.0,58794.0,0.03197684]
[1617395200244,6.60605649,58795.0,58794.0,0.03197684]
[1617395201873,6.54737576,58795.0,58794.0,0.03197684]
[1617395202274,6.54237576,58795.0,58794.0,0.03197684]
[1617395202875,6.6010448,58795.0,58794.0,0.03197684]
[1617395203895,7.58314037,58795.0,58794.0,0.03197684]
[1617395204093,6.6010448,58795.0,58794.0,0.03197684]
[1617395204293,6.5960448,58795.0,58794.0,0.03197684]
[1617395205095,7.57814037,58795.0,58794.0,0.03197684]
[1617395205493,6.5960448,58795.0,58794.0,0.02697684]
[1617395207025,6.7530448,58795.0,58794.0,0.02697684]
[1617395208029,6.69437576,58795.0,58794.0,0.02697684]
[1617395208430,6.75303392,58795.0,58794.0,0.02697684]
[1617395208633,6.98937576,58795.0,58794.0,0.02697684]
[1617395209050,6.98437576,58795.0,58794.0,0.02697684]
[1617395209450,6.95937576,58795.0,58794.0,0.02697684]
[1617395209650,6.5106803,58795.0,58794.0,0.02697684]
[1617395209855,6.3536803,58795.0,58794.0,0.02697684]
[1617395210050,6.5216803,58795.0,58794.0,0.02697684]
[1617395211255,6.5716803,58795.0,58794.0,0.02697684]
[1617395212578,6.63032029,58795.0,58794.0,0.02697684]
[1617395213381,6.71037576,58795.0,58794.0,0.02697684]
[1617395214008,6.5666803,58795.0,58794.0,0.02697684]
[1617395214811,6.70537576,58795.0,58794.0,0.02697684]
[1617395215210,6.66537576,58795.0,58794.0,0.02697684]
[1617395218227,6.5266803,58795.0,58794.0,0.02697684]
[1617395218628,6.66537576,58795.0,58794.0,0.02697684]
[1617395220446,6.83037576,58795.0,58794.0,0.02697684]
[1617395220646,6.72545555,58795.0,58794.0,0.02697684]
[1617395221046,6.78409319,58795.0,58794.0,0.02697684]
[1617395221246,6.77809319,58795.0,58794.0,0.02697684]
[1617395221447,6.43439773,58795.0,58794.0,0.02697684]
[1617395221650,6.57309319,58795.0,58794.0,0.02697684]
[1617395221880,6.8830134,58795.0,58794.0,0.02697684]
[1617395222982,6.5206803,58795.0,58794.0,0.02697684]
[1617395223583,6.4816803,58795.0,58794.0,0.02697684]
[1617395223794,6.54032967,58795.0,58794.0,0.02697684]
[1617395226007,6.67902513,58795.0,58794.0,0.02697684]
[1617395229130,6.67902513,58795.0,58794.0,0.01697684]
[1617395229533,6.67902513,58795.0,58794.0,0.05197684]
[1617395232580,6.83637576,58795.0,58794.0,0.05197684]
[1617395233183,6.3636803,58795.0,58794.0,0.05197684]
[1617395233385,6.42228076,58795.0,58794.0,0.05197684]
[1617395233782,6.56097622,58795.0,58794.0,0.05197684]
[1617395234184,6.50237576,58795.0,58794.0,0.05197684]
[1617395234384,6.5609782,58795.0,58794.0,0.05197684]
[1617395234787,6.50237576,58795.0,58794.0,0.05197684]
[1617395235600,6.49737576,58795.0,58794.0,0.05197684]
[1617395238026,6.48737576,58795.0,58794.0,0.05197684]
[1617395238820,6.3486803,58795.0,58794.0,0.05197684]
[1617395239219,6.48737576,58795.0,58794.0,0.05197684]
[1617395239420,6.20376009,58795.0,58794.0,0.05197684]
[1617395240477,6.3486803,58795.0,58794.0,0.05197684]
[1617395242079,6.2136803,58795.0,58794.0,0.05197684]
[1617395242879,6.35237576,58795.0,58794.0,0.05197684]
[1617395243081,6.2136803,58795.0,58794.0,0.05197684]
[1617395243479,6.3136803,58795.0,58794.0,0.05197684]
[1617395243681,6.37224733,58795.0,58794.0,0.05197684]
[1617395243882,6.56094279,58795.0,58794.0,0.05197684]
[1617395244080,6.50237576,58795.0,58794.0,0.05197684]
[1617395244280,8.3999176,58795.0,58794.0,0.05197684]
[1617395245901,8.26122214,58795.0,58794.0,0.05197684]
[1617395248141,0.3654527,58793.0,58785.0,0.13603632]
[1617395248341,0.03903984,58788.0,58786.0,0.035]
[1617395248541,4.287911,58787.0,58786.0,0.035]
[1617395248739,4.827911,58787.0,58786.0,0.035]
[1617395248939,4.90484441,58787.0,58786.0,0.035]
[1617395249139,5.04976462,58787.0,58786.0,0.035]
[1617395249542,5.30495662,58787.0,58786.0,0.035]
[1617395249742,2.47495662,58787.0,58786.0,0.035]
[1617395249943,1.93495662,58787.0,58786.0,0.035]
[1617395250348,1.79003641,58787.0,58786.0,0.035]
[1617395251772,3.78873187,58787.0,58786.0,0.035]
[1617395251973,4.32873187,58787.0,58786.0,0.035]
[1617395252372,4.47365208,58787.0,58786.0,0.035]
[1617395252572,2.47495662,58787.0,58786.0,0.035]
[1617395252772,2.61365208,58787.0,58786.0,0.035]
[1617395253196,2.61365208,58787.0,58786.0,0.03522]
[1617395253197,2.47495662,58787.0,58786.0,0.03522]
[1617395254002,2.82512186,58787.0,58786.0,0.03522]
[1617395254401,2.47495662,58787.0,58786.0,0.03522]
[1617395254605,2.61365208,58787.0,58786.0,0.03522]
[1617395255004,2.96381732,58787.0,58786.0,0.03522]
[1617395255203,2.61365208,58787.0,58786.0,0.03522]
[1617395256005,2.46873187,58787.0,58786.0,0.03522]
[1617395257008,2.33003641,58787.0,58786.0,0.03522]
[1617395257609,1.26003641,58787.0,58786.0,0.03522]
[1617395257808,1.07020165,58787.0,58786.0,0.03522]
[1617395258213,0.46484441,58787.0,58786.0,0.03478]
[1617395258635,1.23484441,58787.0,58786.0,0.03478]
[1617395258834,0.46484441,58787.0,58786.0,0.03478]
[1617395259038,0.70484441,58787.0,58786.0,0.03478]
[1617395259240,0.31693341,58787.0,58786.0,0.03478]
[1617395259637,0.31693341,58787.0,58786.0,0.02978]
[1617395260035,0.07693341,58787.0,58786.0,0.02978]
[1617395260636,0.03908555,58791.0,58786.0,0.02978]
[1617395260842,0.03908555,58791.0,58786.0,0.25193724]
[1617395261038,0.07703201,58787.0,58786.0,0.25193724]
[1617395261261,0.11612088,58791.0,58786.0,0.25193724]
[1617395261460,0.07703828,58790.0,58786.0,0.25193724]
[1617395261661,0.42720756,58789.0,58786.0,0.02978]
[1617395261861,0.01954872,58787.0,58786.0,0.25193724]
[1617395262059,0.01954872,58787.0,58786.0,0.48875924]
[1617395262262,0.0195505,58788.0,58786.0,0.48875924]
[1617395262460,0.0195505,58788.0,58787.0,0.886818]
[1617395262661,0.0195505,58788.0,58787.0,0.541598]
[1617395262861,0.30415281,58793.0,58787.0,0.541598]
[1617395262862,0.30415281,58792.0,58787.0,0.541598]
[1617395263063,0.01954748,58788.0,58787.0,0.30478]
[1617395263261,0.01954748,58788.0,58787.0,0.266595]
[1617395263663,2.91726068,58795.0,58787.0,0.266595]
[1617395263664,0.07704453,58790.0,58787.0,0.266595]
[1617395263886,0.475,58789.0,58787.0,0.02478]
[1617395264087,0.07704453,58790.0,58787.0,0.02478]
[1617395264285,1.13703542,58788.0,58787.0,0.02478]
[1617395264489,0.38118823,58788.0,58787.0,0.02478]
[1617395264689,0.01954636,58788.0,58787.0,0.02478]
[1617395265287,0.30415281,58793.0,58787.0,0.02478]
[1617395265490,0.0195472,58788.0,58787.0,0.02478]
[1617395265689,0.0195472,58788.0,58786.0,0.24693724]
[1617395265890,0.00097634,58787.0,58786.0,0.24693724]
[1617395266288,0.00097634,58787.0,58786.0,0.62375724]
[1617395266908,0.00097634,58787.0,58786.0,0.4016]
[1617395267909,0.00195251,58788.0,58786.0,0.4016]
[1617395268200,0.00195251,58788.0,58787.0,0.396818]
[1617395268401,0.00195251,58788.0,58787.0,0.421598]
[1617395268801,0.00195251,58788.0,58787.0,0.18978]
[1617395269267,0.00195251,58788.0,58787.0,0.02478]
[1617395269667,0.38986551,58788.0,58787.0,0.02478]
[1617395270068,0.53478572,58788.0,58787.0,0.02478]
[1617395270268,0.53283321,58788.0,58787.0,0.02478]
[1617395270467,0.67783321,58788.0,58787.0,0.02478]
[1617395270667,0.98394158,58788.0,58787.0,0.02478]
[1617395271272,0.98198602,58788.0,58787.0,0.02478]
[1617395271469,0.83706581,58788.0,58786.0,0.02478]
[1617395271669,2.82,58787.0,58786.0,0.02478]
[1617395271867,0.62986968,58787.0,58786.0,0.02478]
[1617395272070,2.26986968,58787.0,58786.0,0.01978]
[1617395272268,0.62986968,58787.0,58786.0,0.01978]
[1617395272667,0.77478989,58787.0,58786.0,0.01978]
[1617395276498,0.38687689,58787.0,58786.0,0.01978]
[1617395276690,0.38785573,58787.0,58786.0,0.01978]
[1617395277715,0.77576873,58787.0,58786.0,0.01978]
[1617395278114,0.77576873,58787.0,58786.0,0.01478]
[1617395278115,0.38785573,58787.0,58786.0,0.01478]
[1617395279317,0.00293552,58787.0,58786.0,0.01478]